fUST/lending_fUST_20250218
["ID","MTS","AMOUNT","RATE_DAILY","PERIOD"]
[353495017,1739883041730,-500.0,0.00013974,2]
[353495018,1739883041740,-500.0,0.00013974,2]
[353495019,1739883041749,-500.0,0.00013974,2]
[353495020,1739883041759,-500.0,0.00013974,2]
[353495021,1739883041769,-500.0,0.00013974,2]
[353495022,1739883041778,-500.0,0.00013974,2]
[353495023,1739883041788,-500.0,0.00013974,2]
[353495024,1739883041798,-500.0,0.00013974,2]
[353495025,1739883041809,-500.0,0.00013974,2]
[353495026,1739883041819,-500.0,0.00013974,2]
[353495027,1739883041828,-500.0,0.00013974,2]
[353495028,1739883041838,-500.0,0.00013974,2]
[353495029,1739883041847,-500.0,0.00013974,2]
[353495030,1739883041858,-500.0,0.00013974,2]
[353495031,1739883041868,-500.0,0.00013974,2]
[353495032,1739883041877,-500.0,0.00013974,2]
[353495033,1739883041887,-500.0,0.00013974,2]
[353495034,1739883041897,-391.09,0.00013974,2]
[353495035,1739883041983,-500.0,0.00013974,2]
[353495036,1739883041994,-500.0,0.00013974,2]
[353495037,1739883042003,-500.0,0.00013974,2]
[353495038,1739883042013,-608.02,0.00013974,2]
[353495039,1739883042023,-500.0,0.00013974,2]
[353495040,1739883042032,-500.0,0.00013974,2]
[353495041,1739883042041,-500.0,0.00013974,2]
[353495042,1739883042053,-500.0,0.00013974,2]
[353495043,1739883042063,-500.0,0.00013974,2]
[353495044,1739883042073,-500.0,0.00013974,2]
[353495045,1739883042084,-621.3,0.00013974,2]
[353495046,1739883042094,-500.0,0.00013974,2]
[353495047,1739883042104,-501.93336031,0.00013974,2]
[353495048,1739883042114,-500.0,0.00013974,2]
[353495049,1739883042123,-500.0,0.00013974,2]
[353495050,1739883042134,-501.5644629,0.00013974,2]
[353495051,1739883042143,-151.0,0.00013974,2]
[353495052,1739883042152,-151.492578,0.00013974,2]
[353495053,1739883042161,-686.43,0.00014053,2]
[353495054,1739883042171,-500.0,0.00014053,2]
[353495055,1739883042180,-500.0,0.00014053,2]
[353495056,1739883042190,-500.0,0.00014053,2]
[353495057,1739883042200,-500.0,0.00014053,2]
[353495058,1739883042210,-1069.8,0.00014053,2]
[353495059,1739883042220,-500.0,0.00014053,2]
[353495060,1739883042230,-500.0,0.00014053,2]
[353495061,1739883042239,-500.0,0.00014053,2]
[353495062,1739883042249,-2292.51,0.00014053,2]
[353495063,1739883042259,-578.63,0.00014053,2]
[353495064,1739883042270,-502.52,0.00014053,2]
[353495065,1739883042280,-761.22,0.00014053,2]
[353495066,1739883042289,-500.0,0.00014053,2]
[353495067,1739883042299,-500.0,0.00014053,2]
[353495068,1739883042311,-1291.92,0.00014054,2]
[353495069,1739883042320,-1291.92,0.00014054,2]
[353495070,1739883042331,-1291.92,0.00014054,2]
[353495071,1739883042341,-1291.92,0.00014054,2]
[353495072,1739883042351,-1291.92,0.00014054,2]
[353495073,1739883042360,-1291.92,0.00014054,2]
[353495074,1739883042369,-1291.92,0.00014054,2]
[353495075,1739883042378,-1291.92,0.00014054,2]
[353495076,1739883042388,-1291.92,0.00014054,2]
[353495077,1739883042398,-1291.92,0.00014054,2]
[353495078,1739883042408,-1291.96,0.00014054,2]
[353495079,1739883042418,-335596.18910233,0.00014055,5]
[353495080,1739883042450,-4941661.22381407,0.00014055,5]
[353495081,1739883042461,-33295.13139011,0.00014055,5]
[353495082,1739883042473,-2590.50009055,0.00014055,5]
[353495087,1739883042623,-500.0,0.0001389,2]
[353495088,1739883042634,-99.23557364,0.00014055,5]
[353495089,1739883042645,-312.2633,0.00014055,5]
[353495104,1739883044648,-500.0,0.0001389,2]
[353495105,1739883044658,-500.0,0.00013972,2]
[353495106,1739883044667,-500.0,0.00013972,2]
[353495107,1739883044677,-2124.66833024,0.00014055,5]
[353495108,1739883044689,-1267.67434859,0.00014055,5]
[353495109,1739883044711,-519.47999996,0.00014055,5]
[353495118,1739883045953,-151.0,0.00013973,2]
[353495119,1739883045963,-90244.65447834,0.00014055,5]
[353495120,1739883046068,-45998.00000214,0.00014055,5]
[353495121,1739883046079,-9373.00820043,0.00014055,5]
[353495122,1739883046477,-8933986.2513696,0.00014055,5]
[353495123,1739883046489,-151.0,0.00014055,2]
[353495124,1739883046500,-151.0,0.00014055,2]
[353495125,1739883046509,-151.0,0.00014055,2]
[353495126,1739883046518,-151.0,0.00014055,2]
[353495127,1739883046528,-151.0,0.00014055,2]
[353495128,1739883046537,-151.0,0.00014055,2]
[353495129,1739883046546,-500.0,0.00014055,2]
[353495130,1739883046556,-151.0,0.00014055,2]
[353495131,1739883046568,-500.0,0.00014055,2]
[353495132,1739883046577,-500.0,0.00014055,2]
[353495133,1739883046586,-500.0,0.00014055,2]
[353495134,1739883046595,-756.48,0.00014055,2]
[353495135,1739883046604,-1695.25,0.00014055,2]
[353495136,1739883046614,-698.78,0.00014055,2]
[353495137,1739883046623,-500.0,0.00014055,2]
[353495138,1739883046632,-500.0,0.00014055,2]
[353495139,1739883046642,-1272.16,0.00014055,2]
[353495140,1739883046651,-500.0,0.00014055,2]
[353495141,1739883046660,-500.0,0.00014055,2]
[353495142,1739883046669,-500.0,0.00014055,2]
[353495143,1739883046679,-500.0,0.00014055,2]
[353495144,1739883046688,-151.0,0.00014055,2]
[353495145,1739883046768,-500.0,0.00014055,2]
[353495146,1739883046779,-500.0,0.00014055,2]
[353495147,1739883046788,-500.0,0.00014055,2]
[353495148,1739883046802,-500.0,0.00014055,2]
[353495149,1739883046813,-500.0,0.00014055,2]
[353495150,1739883046822,-5388.83,0.00014055,2]
[353495151,1739883046832,-500.0,0.00014055,2]
[353495152,1739883046841,-720.31,0.00014055,2]
[353495153,1739883046851,-500.0,0.00014055,2]
[353495154,1739883046860,-500.0,0.00014055,2]
[353495155,1739883046869,-500.0,0.00014055,2]
[353495156,1739883046879,-15661.31,0.00014055,2]
[353495157,1739883046888,-500.0,0.00014055,2]
[353495158,1739883046897,-500.0,0.00014055,2]
[353495159,1739883046907,-500.0,0.00014056,2]
[353495160,1739883046916,-518.12,0.00014056,2]
[353495161,1739883046925,-500.0,0.00014056,2]
[353495162,1739883046935,-397.7,0.00014056,2]
[353495163,1739883046944,-274.98,0.00014056,2]
[353495164,1739883046953,-437.5,0.00014056,2]
[353495165,1739883046963,-389.52,0.00014056,2]
[353495166,1739883046972,-500.0,0.00014056,2]
[353495167,1739883046982,-607.52,0.00014056,2]
[353495168,1739883046991,-339.02,0.00014056,2]
[353495169,1739883047001,-383.48,0.00014056,2]
[353495170,1739883047010,-201.74,0.00014056,2]
[353495171,1739883047019,-254.58,0.00014056,2]
[353495172,1739883047029,-500.0,0.00014056,2]
[353495173,1739883047038,-365.38,0.00014056,2]
[353495174,1739883047048,-261.3,0.00014056,2]
[353495175,1739883047058,-500.0,0.00014056,2]
[353495176,1739883047067,-313.5,0.00014056,2]
[353495177,1739883047077,-390.72,0.00014056,2]
[353495178,1739883047087,-500.0,0.00014056,2]
[353495179,1739883047097,-293.6,0.00014056,2]
[353495180,1739883047106,-241.82,0.00014056,2]
[353495181,1739883047115,-198.32,0.00014056,2]
[353495182,1739883047125,-567.32,0.00014056,2]
[353495183,1739883047134,-500.0,0.00014056,2]
[353495184,1739883047144,-500.0,0.00014056,2]
[353495185,1739883047153,-500.0,0.00014056,2]
[353495186,1739883047163,-369.72539552,0.00014056,2]
[353495187,1739883047172,-502.35309799,0.00014056,2]
[353495188,1739883047182,-500.0,0.00014056,2]
[353495189,1739883047192,-500.0,0.00014056,2]
[353495190,1739883047202,-501.26296343,0.00014056,2]
[353495191,1739883047211,-500.0,0.00014056,2]
[353495192,1739883047223,-500.0,0.00014056,2]
[353495193,1739883047232,-500.0,0.00014056,2]
[353495194,1739883047243,-500.0,0.00014056,2]
[353495195,1739883047253,-500.0,0.00014056,2]
[353495196,1739883047263,-476.9,0.00014056,2]
[353495197,1739883047273,-500.0,0.00014056,2]
[353495198,1739883047283,-449.92,0.00014056,2]
[353495199,1739883047293,-500.0,0.00014056,2]
[353495200,1739883047302,-531.61078871,0.00014056,2]
[353495201,1739883047313,-654.52,0.00014056,2]
[353495202,1739883047323,-654.87,0.00014056,2]
[353495203,1739883047332,-644.95,0.00014056,2]
[353495204,1739883047342,-535.02,0.00014056,2]
[353495205,1739883047351,-500.0,0.00014056,2]
[353495206,1739883047361,-562.5,0.00014056,2]
[353495207,1739883047370,-686.43,0.00014136,2]
[353495208,1739883047379,-500.0,0.00014136,2]
[353495209,1739883047388,-500.0,0.00014136,2]
[353495210,1739883047399,-500.0,0.00014136,2]
[353495211,1739883047408,-500.0,0.00014136,2]
[353495212,1739883047418,-1069.8,0.00014136,2]
[353495213,1739883047427,-500.0,0.00014136,2]
[353495214,1739883047437,-500.0,0.00014136,2]
[353495215,1739883047447,-500.0,0.00014136,2]
[353495216,1739883047457,-2292.51,0.00014136,2]
[353495217,1739883047466,-578.63,0.00014136,2]
[353495218,1739883047476,-502.52,0.00014136,2]
[353495219,1739883047487,-761.22,0.00014136,2]
[353495220,1739883047497,-500.0,0.00014136,2]
[353495221,1739883047506,-500.0,0.00014136,2]
[353495222,1739883047520,-500.0,0.00014137,2]
[353495223,1739883047531,-500.0,0.00014137,2]
[353495224,1739883047541,-500.0,0.00014137,2]
[353495225,1739883047550,-500.0,0.00014137,2]
[353495226,1739883047560,-756.48,0.00014137,2]
[353495227,1739883047570,-1695.25,0.00014137,2]
[353495228,1739883047582,-698.78,0.00014137,2]
[353495229,1739883047596,-500.0,0.00014137,2]
[353495230,1739883047609,-505.49042839,0.00014137,2]
[353495231,1739883047624,-1272.16,0.00014137,2]
[353495232,1739883047634,-500.0,0.00014137,2]
[353495233,1739883047645,-500.0,0.00014137,2]
[353495234,1739883047659,-500.0,0.00014137,2]
[353495235,1739883047672,-500.0,0.00014137,2]
[353495236,1739883047685,-151.0,0.00014137,2]
[353495237,1739883047699,-500.0,0.00014137,2]
[353495238,1739883047711,-500.0,0.00014137,2]
[353495239,1739883047726,-583.77999867,0.00014137,2]
[353495240,1739883047740,-253.25034308,0.00014137,2]
[353495241,1739883047753,-500.0,0.00014137,2]
[353495242,1739883047766,-5388.83,0.00014137,2]
[353495243,1739883047779,-500.0,0.00014137,2]
[353495244,1739883047790,-720.31,0.00014137,2]
[353495245,1739883047805,-500.0,0.00014137,2]
[353495246,1739883047819,-500.0,0.00014137,2]
[353495247,1739883047834,-500.0,0.00014137,2]
[353495248,1739883047847,-15661.31,0.00014137,2]
[353495249,1739883047860,-193.83,0.00014137,2]
[353495250,1739883047873,-205.08,0.00014137,2]
[353495251,1739883047886,-299.74899277,0.00014138,2]
[353495252,1739883047899,-244.78,0.00014138,2]
[353495253,1739883047911,-569.29,0.00014138,2]
[353495254,1739883047925,-500.0,0.00014138,2]
[353495255,1739883047939,-500.0,0.00014138,2]
[353495256,1739883047952,-500.0,0.00014138,2]
[353495257,1739883047965,-240.61,0.00014138,2]
[353495258,1739883047977,-500.0,0.00014138,2]
[353495259,1739883047989,-500.0,0.00014138,2]
[353495260,1739883047999,-500.0,0.00014138,2]
[353495261,1739883048011,-500.0,0.00014138,2]
[353495262,1739883048025,-530.86517754,0.00014138,2]
[353495263,1739883048039,-654.52,0.00014138,2]
[353495264,1739883048053,-654.87,0.00014138,2]
[353495265,1739883048066,-535.02,0.00014138,2]
[353495266,1739883048078,-500.0,0.00014138,2]
[353495267,1739883048091,-562.5,0.00014138,2]
[353495268,1739883048103,-272.08,0.00014139,2]
[353495269,1739883048115,-245.76,0.00014139,2]
[353495270,1739883048128,-500.0,0.00014139,2]
[353495271,1739883048141,-517.37,0.00014139,2]
[353495272,1739883048153,-415.22,0.00014139,2]
[353495273,1739883048165,-500.0,0.00014139,2]
[353495274,1739883048177,-600.0,0.00014164,2]
[353495275,1739883048190,-686.43,0.00014218,2]
[353495276,1739883048202,-500.0,0.00014218,2]
[353495277,1739883048213,-500.0,0.00014218,2]
[353495278,1739883048226,-500.0,0.00014218,2]
[353495279,1739883048238,-506.55930327,0.00014218,2]
[353495280,1739883048249,-1069.8,0.00014218,2]
[353495281,1739883048261,-505.06868119,0.00014218,2]
[353495282,1739883048273,-500.0,0.00014218,2]
[353495283,1739883048283,-500.0,0.00014218,2]
[353495284,1739883048294,-2292.51,0.00014218,2]
[353495285,1739883048306,-578.63,0.00014218,2]
[353495286,1739883048318,-502.52,0.00014218,2]
[353495287,1739883048330,-761.22,0.00014218,2]
[353495288,1739883048343,-500.0,0.00014218,2]
[353495289,1739883048355,-500.0,0.00014218,2]
[353495290,1739883048368,-151.0,0.00014219,2]
[353495291,1739883048381,-151.0,0.00014219,2]
[353495292,1739883048394,-500.0,0.00014219,2]
[353495293,1739883048406,-500.0,0.00014219,2]
[353495294,1739883048419,-500.0,0.00014219,2]
[353495295,1739883048433,-500.0,0.00014219,2]
[353495296,1739883048446,-756.48,0.00014219,2]
[353495297,1739883048459,-1695.25,0.00014219,2]
[353495298,1739883048473,-698.78,0.00014219,2]
[353495299,1739883048488,-500.0,0.00014219,2]
[353495300,1739883048500,-1272.16,0.00014219,2]
[353495301,1739883048511,-500.0,0.00014219,2]
[353495302,1739883048522,-500.0,0.00014219,2]
[353495303,1739883048534,-500.0,0.00014219,2]
[353495304,1739883048544,-500.0,0.00014219,2]
[353495305,1739883048555,-500.0,0.00014219,2]
[353495306,1739883048570,-504.74455732,0.00014219,2]
[353495307,1739883048581,-500.0,0.00014219,2]
[353495308,1739883048593,-5388.83,0.00014219,2]
[353495309,1739883048604,-500.0,0.00014219,2]
[353495310,1739883048616,-720.31,0.00014219,2]
[353495311,1739883048627,-500.0,0.00014219,2]
[353495312,1739883048780,-326.39,0.00014219,2]
[353495313,1739883048797,-500.0,0.00014219,2]
[353495314,1739883048809,-15661.31,0.00014219,2]
[353495315,1739883048821,-620.88,0.0001422,2]
[353495316,1739883048831,-229.80737572,0.0001422,2]
[353495317,1739883048842,-500.0,0.0001422,2]
[353495318,1739883048853,-500.0,0.0001422,2]
[353495319,1739883048865,-500.0,0.0001422,2]
[353495320,1739883048876,-500.0,0.0001422,2]
[353495321,1739883048886,-500.0,0.0001422,2]
[353495322,1739883048897,-654.52,0.0001422,2]
[353495323,1739883048908,-654.87,0.0001422,2]
[353495324,1739883048919,-151.0,0.0001422,2]
[353495325,1739883048929,-535.02,0.0001422,2]
[353495326,1739883048939,-503.37581264,0.0001422,2]
[353495327,1739883048949,-562.5,0.0001422,2]
[353495328,1739883048959,-279.36,0.00014221,2]
[353495329,1739883048969,-500.0,0.00014221,2]
[353495330,1739883048980,-172.138,0.00014293,2]
[353495331,1739883048990,-686.43,0.000143,2]
[353495332,1739883049000,-500.0,0.000143,2]
[353495333,1739883049011,-399.1396949,0.000143,2]
[353495334,1739883049023,-500.0,0.000143,2]
[353495335,1739883049033,-1069.8,0.000143,2]
[353495336,1739883049043,-500.0,0.000143,2]
[353495337,1739883049054,-500.0,0.000143,2]
[353495338,1739883049066,-2292.51,0.000143,2]
[353495339,1739883049078,-578.63,0.000143,2]
[353495340,1739883049089,-502.52,0.000143,2]
[353495341,1739883049100,-500.0,0.000143,2]
[353495342,1739883049111,-500.0,0.000143,2]
[353495343,1739883049122,-500.0,0.00014301,2]
[353495344,1739883049133,-500.0,0.00014301,2]
[353495345,1739883049144,-500.0,0.00014301,2]
[353495346,1739883049155,-500.0,0.00014301,2]
[353495347,1739883049166,-756.48,0.00014301,2]
[353495348,1739883049177,-1695.25,0.00014301,2]
[353495349,1739883049188,-698.78,0.00014301,2]
[353495350,1739883049198,-500.0,0.00014301,2]
[353495351,1739883049209,-1272.16,0.00014301,2]
[353495352,1739883049219,-500.0,0.00014301,2]
[353495353,1739883049230,-500.0,0.00014301,2]
[353495354,1739883049240,-505.83666062,0.00014301,2]
[353495355,1739883049249,-500.0,0.00014301,2]
[353495356,1739883049260,-500.0,0.00014301,2]
[353495357,1739883049271,-500.0,0.00014301,2]
[353495358,1739883049282,-5388.83,0.00014301,2]
[353495359,1739883049292,-500.0,0.00014301,2]
[353495360,1739883049303,-720.31,0.00014301,2]
[353495361,1739883049315,-500.0,0.00014301,2]
[353495362,1739883049326,-500.0,0.00014301,2]
[353495363,1739883049337,-15661.31,0.00014301,2]
[353495364,1739883049347,-151.0,0.00014302,2]
[353495365,1739883049358,-151.0,0.00014302,2]
[353495366,1739883049369,-500.0,0.00014302,2]
[353495367,1739883049380,-500.0,0.00014302,2]
[353495368,1739883049391,-500.0,0.00014302,2]
[353495369,1739883049402,-500.0,0.00014302,2]
[353495370,1739883049412,-500.0,0.00014302,2]
[353495371,1739883049424,-654.52,0.00014302,2]
[353495372,1739883049434,-654.87,0.00014302,2]
[353495373,1739883049444,-535.02,0.00014302,2]
[353495374,1739883049454,-562.5,0.00014302,2]
[353495375,1739883049471,-500.0,0.00014303,2]
[353495376,1739883049493,-1197.9684977,0.00014326,2]
[353495377,1739883049515,-686.43,0.00014382,2]
[353495378,1739883049525,-500.0,0.00014382,2]
[353495379,1739883049537,-500.0,0.00014382,2]
[353495380,1739883049547,-1069.8,0.00014382,2]
[353495381,1739883049558,-505.82987098,0.00014382,2]
[353495382,1739883049569,-500.0,0.00014382,2]
[353495383,1739883049580,-2292.51,0.00014382,2]
[353495384,1739883049591,-578.63,0.00014382,2]
[353495385,1739883049603,-502.52,0.00014382,2]
[353495386,1739883049613,-500.0,0.00014382,2]
[353495387,1739883049624,-500.0,0.00014382,2]
[353495388,1739883049634,-500.0,0.00014383,2]
[353495389,1739883049644,-500.0,0.00014383,2]
[353495390,1739883049656,-500.0,0.00014383,2]
[353495391,1739883049667,-500.0,0.00014383,2]
[353495392,1739883049676,-756.48,0.00014383,2]
[353495393,1739883049686,-1695.25,0.00014383,2]
[353495394,1739883049695,-500.0,0.00014383,2]
[353495395,1739883049705,-1272.16,0.00014383,2]
[353495396,1739883049715,-500.0,0.00014383,2]
[353495397,1739883049726,-500.0,0.00014383,2]
[353495398,1739883049735,-500.0,0.00014383,2]
[353495399,1739883049745,-500.0,0.00014383,2]
[353495400,1739883049756,-500.0,0.00014383,2]
[353495401,1739883049766,-5388.83,0.00014383,2]
[353495402,1739883049776,-500.0,0.00014383,2]
[353495403,1739883049786,-720.31,0.00014383,2]
[353495404,1739883049797,-500.0,0.00014383,2]
[353495405,1739883049807,-500.0,0.00014383,2]
[353495406,1739883049817,-15661.31,0.00014383,2]
[353495407,1739883049827,-500.0,0.00014384,2]
[353495408,1739883049837,-500.0,0.00014384,2]
[353495409,1739883049847,-363.41,0.00014384,2]
[353495410,1739883049857,-172.5709788,0.00014384,2]
[353495411,1739883049868,-500.0,0.00014384,2]
[353495412,1739883049878,-654.52,0.00014384,2]
[353495413,1739883049888,-654.87,0.00014384,2]
[353495414,1739883049898,-151.0,0.00014384,2]
[353495415,1739883049908,-535.02,0.00014384,2]
[353495416,1739883049918,-562.5,0.00014384,2]
[353495417,1739883049928,-404.52,0.00014385,2]
[353495418,1739883049938,-698.78,0.00014385,2]
[353495419,1739883049948,-698.78,0.00014385,2]
[353495420,1739883049958,-1000.0,0.00014421,2]
[353495421,1739883049968,-686.43,0.00014464,2]
[353495422,1739883049978,-153.12180874,0.00014464,2]
[353495423,1739883049987,-500.0,0.00014464,2]
[353495424,1739883049997,-1069.8,0.00014464,2]
[353495425,1739883050007,-607.27188188,0.00014464,2]
[353495426,1739883050016,-2292.51,0.00014464,2]
[353495427,1739883050026,-578.63,0.00014464,2]
[353495428,1739883050036,-502.52,0.00014464,2]
[353495429,1739883050048,-500.0,0.00014464,2]
[353495430,1739883050057,-500.0,0.00014464,2]
[353495431,1739883050067,-500.0,0.00014466,2]
[353495432,1739883050076,-500.0,0.00014466,2]
[353495433,1739883050086,-500.0,0.00014466,2]
[353495434,1739883050095,-500.0,0.00014466,2]
[353495435,1739883050105,-756.48,0.00014466,2]
[353495436,1739883050114,-1695.25,0.00014466,2]
[353495437,1739883050124,-698.78,0.00014466,2]
[353495438,1739883050134,-500.0,0.00014466,2]
[353495439,1739883050143,-1272.16,0.00014466,2]
[353495440,1739883050153,-500.0,0.00014466,2]
[353495441,1739883050163,-500.0,0.00014466,2]
[353495442,1739883050172,-500.0,0.00014466,2]
[353495443,1739883050182,-500.0,0.00014466,2]
[353495444,1739883050192,-279.73020935,0.00014466,2]
[353495445,1739883050201,-5388.83,0.00014466,2]
[353495446,1739883050211,-500.0,0.00014466,2]
[353495447,1739883050221,-720.31,0.00014466,2]
[353495448,1739883050230,-322.9,0.00014466,2]
[353495449,1739883050241,-500.0,0.00014466,2]
[353495450,1739883050251,-15661.31,0.00014466,2]
[353495451,1739883050261,-160.02194052,0.00014467,2]
[353495452,1739883050271,-500.0,0.00014467,2]
[353495453,1739883050280,-151.0,0.00014467,2]
[353495454,1739883050290,-151.0,0.00014467,2]
[353495455,1739883050300,-500.0,0.00014467,2]
[353495456,1739883050311,-500.0,0.00014467,2]
[353495457,1739883050320,-654.52,0.00014467,2]
[353495458,1739883050330,-654.87,0.00014467,2]
[353495459,1739883050340,-535.02,0.00014467,2]
[353495460,1739883050350,-562.5,0.00014467,2]
[353495461,1739883050360,-686.43,0.00014547,2]
[353495462,1739883050370,-500.0,0.00014547,2]
[353495463,1739883050380,-1069.8,0.00014547,2]
[353495464,1739883050390,-2292.51,0.00014547,2]
[353495465,1739883050401,-578.63,0.00014547,2]
[353495466,1739883050410,-502.52,0.00014547,2]
[353495467,1739883050420,-500.0,0.00014547,2]
[353495468,1739883050430,-209.7,0.00014547,2]
[353495469,1739883050440,-500.0,0.00014548,2]
[353495470,1739883050449,-500.0,0.00014548,2]
[353495471,1739883050459,-500.0,0.00014548,2]
[353495472,1739883050469,-500.0,0.00014548,2]
[353495473,1739883050479,-756.48,0.00014548,2]
[353495474,1739883050490,-1695.25,0.00014548,2]
[353495475,1739883050501,-500.0,0.00014548,2]
[353495476,1739883050510,-1272.16,0.00014548,2]
[353495477,1739883050520,-500.0,0.00014548,2]
[353495478,1739883050531,-500.0,0.00014548,2]
[353495479,1739883050540,-500.0,0.00014548,2]
[353495480,1739883050550,-151.0,0.00014548,2]
[353495481,1739883050559,-500.0,0.00014548,2]
[353495482,1739883050571,-5388.83,0.00014548,2]
[353495483,1739883050581,-500.0,0.00014548,2]
[353495484,1739883050591,-720.31,0.00014548,2]
[353495485,1739883050600,-500.0,0.00014548,2]
[353495486,1739883050610,-15661.31,0.00014548,2]
[353495487,1739883050619,-500.0,0.00014549,2]
[353495488,1739883050628,-500.0,0.00014549,2]
[353495489,1739883050638,-500.0,0.00014549,2]
[353495490,1739883050647,-654.52,0.00014549,2]
[353495491,1739883050657,-654.87,0.00014549,2]
[353495492,1739883050667,-535.02,0.00014549,2]
[353495493,1739883050677,-562.5,0.00014549,2]
[353495494,1739883050686,-686.43,0.00014629,2]
[353495495,1739883050696,-500.0,0.00014629,2]
[353495496,1739883050718,-1069.8,0.00014629,2]
[353495497,1739883050728,-2292.51,0.00014629,2]
[353495498,1739883050738,-578.63,0.00014629,2]
[353495499,1739883050747,-502.52,0.00014629,2]
[353495500,1739883050757,-500.0,0.00014629,2]
[353495501,1739883050766,-500.0,0.0001463,2]
[353495502,1739883050776,-500.0,0.0001463,2]
[353495503,1739883050786,-500.0,0.0001463,2]
[353495504,1739883050795,-500.0,0.0001463,2]
[353495505,1739883050805,-756.48,0.0001463,2]
[353495506,1739883050816,-1695.25,0.0001463,2]
[353495507,1739883050826,-500.0,0.0001463,2]
[353495508,1739883050835,-1272.16,0.0001463,2]
[353495509,1739883050844,-500.0,0.0001463,2]
[353495510,1739883050854,-500.0,0.0001463,2]
[353495511,1739883050863,-500.0,0.0001463,2]
[353495512,1739883050873,-500.0,0.0001463,2]
[353495513,1739883050882,-5388.83,0.0001463,2]
[353495514,1739883050891,-500.0,0.0001463,2]
[353495515,1739883050900,-720.31,0.0001463,2]
[353495516,1739883050910,-500.0,0.0001463,2]
[353495517,1739883050919,-15661.31,0.0001463,2]
[353495518,1739883050928,-500.0,0.00014631,2]
[353495519,1739883050938,-500.0,0.00014631,2]
[353495520,1739883050948,-698.78,0.00014631,2]
[353495521,1739883050958,-500.0,0.00014631,2]
[353495522,1739883050967,-654.52,0.00014631,2]
[353495523,1739883050976,-654.87,0.00014631,2]
[353495524,1739883050986,-535.02,0.00014631,2]
[353495525,1739883050995,-562.5,0.00014631,2]
[353495526,1739883051005,-686.43,0.00014711,2]
[353495527,1739883051014,-500.0,0.00014711,2]
[353495528,1739883051023,-1069.8,0.00014711,2]
[353495529,1739883051033,-2292.51,0.00014711,2]
[353495530,1739883051042,-578.63,0.00014711,2]
[353495531,1739883051051,-502.52,0.00014711,2]
[353495532,1739883051061,-500.0,0.00014711,2]
[353495533,1739883051070,-500.0,0.00014712,2]
[353495534,1739883051080,-500.0,0.00014712,2]
[353495535,1739883051089,-500.0,0.00014712,2]
[353495536,1739883051100,-500.0,0.00014712,2]
[353495537,1739883051109,-756.48,0.00014712,2]
[353495538,1739883051118,-1695.25,0.00014712,2]
[353495539,1739883051128,-500.0,0.00014712,2]
[353495540,1739883051138,-1272.16,0.00014712,2]
[353495541,1739883051148,-500.0,0.00014712,2]
[353495542,1739883051157,-500.0,0.00014712,2]